[Event "Krakow Championship-A 2022"]
[Site "Krakow"]
[Date "2022.06.29"]
[Round "6.7"]
[White "Leniart, Arkadiusz"]
[Black "Balaji Sekar"]
[Result "1-0"]
[ECO "B90"]
[WhiteElo "2473"]
[BlackElo "1189"]
[Annotator "TA"]
[PlyCount "61"]
[EventDate "2022.06.25"]
[EventType "swiss"]
[EventCountry "POL"]
[SourceTitle "playchess.com"]
[Source "ChessBase"]
[SourceQuality "1"]
[TimeControl "40/5400+30:1800+30"]

{[%evp 9,61,29,28,9,16,6,26,0,0,0,0,0,6,-2,16,-6,21,0,62,61,56,52,175,161,164,152,125,135,148,160,150,143,142,152,141,141,139,135,174,112,109,93,102,52,139,136,126,102,129,126,530,538,1442,864]} 1. e4 {[%emt 0:00:03]} c5 {[%emt 0:00:09]} 2. Nf3 {[%emt 0:00:10]} d6 {[%emt 0:00:04]} 3. d4 {[%emt 0:00:03]} cxd4 {[%emt 0:00:04]} 4. Nxd4 {[%emt 0:00:04]} Nf6 {[%emt 0:00:07]} 5. Nc3 {[%emt 0:00:04]} a6 {[%emt 0:00:04]} 6. h4 {[%emt 0:00:05] B90: Sicilian Najdorf: Unusual White 6th moves, 6 Be3 Ng4 and 6 Be3 e5.} e5 {[%emt 0:01:26]} 7. Nb3 {[%emt 0:00:07]} Be7 {[%emt 0:01:18]} 8. Bg5 {[%emt 0:00:07] White has an edge.} Be6 {[%emt 0:04:07]} 9. Bxf6 {[%emt 0:00:07]} Bxf6 {[%emt 0:00:05]} 10. g3 {[%emt 0:00:03]} O-O {[%emt 0:04:38] [#]} 11. Qd3 $146 {[%emt 0:02:24]} ({Predecessor:} 11. Qd2 Be7 12. Nd5 Nd7 13. Bh3 Nb6 14. Bxe6 fxe6 15. Nxe7+ Qxe7 16. Qe2 Rac8 17. O-O {½-½ (29) Chigaev,M (2577)-Sarana,A (2613) Ekaterinburg 2018}) 11... Nc6 {[%emt 0:03:35]} 12. O-O-O {[%emt 0:05:06]} Qb6 {[%emt 0:10:23]} (12... a5 {is more complex.} 13. Qxd6 Qc8 14. Nd5 Nb4) 13. Bh3 {[%emt 0:20:49]} Rfd8 {[%emt 0:23:19]} (13... Bxb3 $11 14. axb3 Qxf2) 14. Bxe6 $14 {[%emt 0:13:30]} fxe6 {[%emt 0:00:01]} 15. g4 {[%emt 0:07:04]} d5 {[%emt 0:26:41]} ({Don't play} 15... Qxf2 16. Rdf1 Qg2 17. Rhg1 $11) (15... Kh8 $14) 16. exd5 {[%emt 0:06:48] Hoping for g5.} Nb4 {[%emt 0:02:55]} 17. Qe4 {[%emt 0:03:58]} exd5 {[%emt 0:13:39]} 18. Nxd5 {[%emt 0:01:51]} Rxd5 {[%emt 0:01:42]} 19. Rxd5 {[%emt 0:00:22]} Qc6 {[%emt 0:00:01] [#] Prevents Rd7.} 20. Qxb4 $1 {[%emt 0:02:41]} Qxd5 {[%emt 0:00:02]} 21. Rd1 {[%emt 0:00:08]} Qf7 {[%emt 0:00:13]} 22. g5 {[%emt 0:01:11]} Be7 {[%emt 0:00:01]} 23. Qe4 {[%emt 0:00:30]} Bf8 {[%emt 0:03:28]} 24. Qxe5 {[%emt 0:04:03]} (24. f3 $18) 24... Qxf2 $16 {[%emt 0:00:09]} 25. Nd4 {[%emt 0:08:02][%cal Bb3d4,Bd4e6,Be6f4][%mdl 32]} Qf7 {[%emt 0:01:35]} 26. Re1 {[%emt 0:03:17]} (26. Ne6 $16) 26... Rd8 {[%emt 0:01:36]} (26... Qxa2 $14 27. Nb3 Qa4) 27. Ne6 $36 {[%emt 0:04:55][%mdl 2048] White is on the roll.} Re8 {[%emt 0:00:24]} 28. c3 {[%emt 0:00:40] White is much more active.} Qd7 {[%emt 0:00:55]} 29. h5 {[%emt 0:04:31] [#] Threatens to win with g6.} Bd6 $2 {[%emt 0:00:11][%mdl 8192]} (29... Qd3 $16 {is a better chance.} 30. Qf4 Bd6) 30. Qd5 $18 {[%emt 0:01:42] Threatening mate with Nc5+.} Bf4+ {[%emt 0:00:03]} 31. Nxf4+ {[%emt 0:00:06] Weighted Error Value: White=0.10 (very precise) /Black=0.50} 1-0

[Event "Krakow Championship-A 2022"]
[Site "Krakow"]
[Date "2022.06.29"]
[Round "6.8"]
[White "Danielyan, Vahe"]
[Black "Kozak, Antoni"]
[Result "1-0"]
[ECO "B51"]
[WhiteElo "2324"]
[BlackElo "2459"]
[Annotator "TA"]
[PlyCount "109"]
[EventDate "2022.06.25"]
[EventType "swiss"]
[EventCountry "POL"]
[SourceTitle "playchess.com"]
[Source "ChessBase"]
[SourceQuality "1"]
[TimeControl "40/5400+30:1800+30"]

{[%evp 9,108,12,20,8,19,23,21,23,21,23,18,14,11,16,62,16,14,12,6,0,12,-73,-50,-54,-56,-66,-14,-21,-18,-17,-17,-17,-12,-36,-43,-91,-8,-8,-15,-5,0,0,0,0,0,0,0,0,0,0,43,43,43,43,43,43,56,56,147,145,161,177,214,204,214,210,204,194,196,206,231,227,205,245,406,189,183,0,415,415,415,415,415,415,415,415,400,385,433,298,356,167,169,174,661,631,29982,29984,29995,29996,29999]} 1. e4 {[%emt 0:00:04]} c5 {[%emt 0:00:03]} 2. Nf3 {[%emt 0:00:13]} d6 {[%emt 0:00:02]} 3. Bb5+ {[%emt 0:00:07]} Nd7 {[%emt 0:00:04]} 4. Ba4 {[%emt 0:00:09]} Ngf6 {[%emt 0:00:10]} 5. O-O {[%emt 0:00:08]} e6 {[%emt 0:00:13]} 6. Re1 {[%emt 0:01:02] B51: Sicilian: Moscow Variation (3 Bb5+) without 3...Bd7.} Be7 {[%emt 0:02:20]} 7. c3 {[%emt 0:00:07]} a6 {[%emt 0:00:52]} 8. d4 {[%emt 0:00:05] The position is equal.} b5 9. Bc2 Bb7 {[%emt 0:01:13]} 10. a4 {[%emt 0:00:21]} cxd4 {[%emt 0:19:21]} 11. cxd4 {[%emt 0:03:38] [#]} Qb8 $146 {[%emt 0:04:37]} (11... O-O $11) ({Predecessor:} 11... O-O 12. Bd2 Qb6 13. a5 Qc7 14. Nc3 Rac8 15. Bd3 e5 16. Qe2 exd4 17. Nxd4 Rfe8 {0-1 (32) Albornoz Cabrera,C (2567)-Bok,B (2619) Chess.com INT 2021}) 12. Nbd2 {[%emt 0:01:32]} (12. axb5 $14 axb5 13. Rxa8 Bxa8 14. d5) 12... O-O $11 {[%emt 0:01:41]} 13. a5 {[%emt 0:00:20]} Rc8 {[%emt 0:04:41]} 14. h3 {[%emt 0:15:31]} g6 {[%emt 0:03:10]} 15. d5 {[%emt 0:05:55]} (15. Nf1 $11) 15... exd5 {[%emt 0:03:09]} (15... Qc7 $5 {[%cal Rc7c2]} 16. dxe6 Qxc2 17. Qxc2 Rxc2 18. exd7 Nxd7 $17) 16. exd5 {[%emt 0:01:48]} Bf8 {[%emt 0:01:44]} 17. Ne4 {[%emt 0:12:29]} Qc7 {[%emt 0:15:48]} (17... Nxd5 18. Bb3 N5f6 19. Nxf6+ Nxf6 20. Bf4 $11) ({Black should try} 17... Bg7 $15) 18. Nxf6+ $1 {[%emt 0:03:01]} Nxf6 {[%emt 0:00:04]} 19. Bb3 {[%emt 0:00:38]} Re8 {[%emt 0:04:48]} 20. Be3 {[%emt 0:02:46]} Rac8 {[%emt 0:02:18]} 21. Nh2 {[%emt 0:11:13]} Bg7 {[%emt 0:03:40]} 22. Qf3 {[%emt 0:00:02]} (22. Bd4 $15) 22... h5 {[%emt 0:05:31]} ({Black should play} 22... Ne4 $17 23. Bb6 Qe7) 23. Bb6 {[%emt 0:04:36]} Qd7 {[%emt 0:01:03]} 24. Bd4 {[%emt 0:00:24]} Qf5 {[%emt 0:01:27]} 25. Rxe8+ {[%emt 0:01:58]} Rxe8 {[%emt 0:01:58]} 26. Qxf5 {[%emt 0:00:29]} gxf5 {[%emt 0:00:04]} 27. Rd1 {[%emt 0:00:38]} Nd7 {[%emt 0:01:17]} 28. Nf3 {[%emt 0:01:19]} Nc5 {[%emt 0:01:15]} 29. Bc2 {[%emt 0:00:20]} Bxd5 {[%emt 0:12:31]} 30. Bxg7 {[%emt 0:01:15][%mdl 64] Discovered Attack} ({Much weaker is} 30. Bxc5 Bxf3 31. gxf3 (31. Rxd6 $2 {gets mated.} Re1+ 32. Kh2 Be5+ 33. g3 Rh1#) 31... dxc5 $15) 30... Bxf3 {[%emt 0:00:14]} 31. gxf3 {[%emt 0:02:26]} Kxg7 {[%emt 0:00:02][%mdl 4096] Endgame KRB-KRN} 32. b4 {[%emt 0:02:49]} Ne6 {[%emt 0:00:33]} 33. Rxd6 {[%emt 0:01:16]} Nf4 {[%emt 0:02:28]} (33... Rd8 $14 34. Rxa6 Nd4) 34. Bxf5 $16 {[%emt 0:00:26]} Re5 {[%emt 0:02:42] [#]} 35. Bc8 {[%emt 0:01:18]} Nd5 {[%emt 0:00:19]} 36. Bxa6 {[%emt 0:03:10]} Nxb4 {[%emt 0:00:11]} 37. Bb7 {[%emt 0:00:38]} Re1+ {[%emt 0:00:04]} 38. Kg2 {[%emt 0:01:37]} Ra1 {[%emt 0:00:11]} 39. a6 {[%emt 0:00:21]} h4 {[%emt 0:00:27]} 40. f4 {[%emt 0:01:14][%cal Bf3f4,Bf4f5,Bf5f6][%mdl 32]} Ra3 {[%emt 0:00:02]} 41. f5 {[%emt 0:30:41]} Kh7 $2 {[%emt 0:31:00]} (41... Na2 42. f4 Nc3) 42. Bc8 {[%emt 0:07:31]} (42. f4 $142 {aiming for f6.} Kg7 43. f6+ Kh6 44. Kf2) 42... Kg7 $18 {[%emt 0:02:05]} 43. Bb7 $2 {[%emt 0:02:26]} (43. f4) 43... Kh7 $1 {[%emt 0:03:08]} 44. f4 {[%emt 0:00:06]} Kg7 {[%emt 0:01:20]} 45. f6+ {[%emt 0:01:49]} Kh6 {[%emt 0:00:17]} 46. Kf2 {[%emt 0:01:11]} Kh5 {[%emt 0:00:16]} 47. Ke2 {[%emt 0:06:52]} Kh6 {[%emt 0:00:44]} 48. Rb6 {[%emt 0:05:20]} Ra4 {[%emt 0:01:32]} 49. Kd2 {[%emt 0:01:09] Black must now prevent Ke3.} Ra3 {[%emt 0:00:12] [#]} 50. Kc1 {[%emt 0:00:00]} ({Not} 50. Rxb5 Nxa6 51. Rg5 Nc7 $14) (50. Rd6 $142 $1) 50... Nd3+ {[%emt 0:00:00]} 51. Kc2 {[%emt 0:00:00]} b4 {[%emt 0:00:00]} (51... Nxf4 52. Rxb5 Ne6) 52. a7 {[%emt 0:00:00]} Rxa7 {[%emt 0:00:00]} 53. Kxd3 {[%emt 0:00:00] White mates.} Kh7 {[%emt 0:00:00]} 54. Be4+ {[%emt 0:00:00]} Kh8 {[%emt 0:00:00]} 55. Rb8# {[%emt 0:00:00] Weighted Error Value: White=0.22 (precise) /Black=0.42} 1-0

[Event "Krakow Championship-A 2022"]
[Site "Krakow"]
[Date "2022.06.29"]
[Round "6.9"]
[White "Seemann, Jakub"]
[Black "Murphy, Conor E"]
[Result "0-1"]
[ECO "E04"]
[WhiteElo "2363"]
[BlackElo "2395"]
[Annotator "TA"]
[PlyCount "112"]
[EventDate "2022.06.25"]
[EventType "swiss"]
[EventCountry "POL"]
[SourceTitle "playchess.com"]
[Source "ChessBase"]
[SourceQuality "1"]
[TimeControl "40/5400+30:1800+30"]

{[%evp 11,112,26,32,30,34,0,0,0,0,0,0,0,-4,0,-10,-39,-8,-28,54,6,17,-187,-194,-200,-198,-210,-205,-198,-167,-184,-157,-177,-164,-260,-239,-407,-400,-379,-410,-406,-387,-391,-381,-420,-421,-488,-79,-484,-162,-624,-561,-590,-546,-550,-500,-492,-321,-328,-332,-329,-340,-336,-333,-325,-324,-280,-267,-322,-311,-389,-397,-400,-385,-391,-378,-366,-363,-408,-402,-420,-444,-435,-431,-596,-381,-796,-777,-809,-817,-817,-817,-796,-783,-752,-686,-560,-524,-820,-823,-767,-704,-616,-575]} 1. d4 {[%emt 0:00:01]} d5 {[%emt 0:00:51]} 2. c4 {[%emt 0:00:07]} e6 {[%emt 0:00:09]} 3. Nf3 {[%emt 0:00:05]} Nf6 {[%emt 0:00:22]} 4. g3 {[%emt 0:00:04]} dxc4 {[%emt 0:01:12]} 5. Bg2 {[%emt 0:00:04]} Bb4+ {[%emt 0:00:36]} 6. Bd2 {[%emt 0:01:19]} a5 {[%emt 0:00:18]} 7. Qc2 {[%emt 0:00:44] E04: Open Catalan: 5 Nf3.} Bxd2+ {[%emt 0:00:36]} 8. Nbxd2 {[%emt 0:00:12]} b5 {[%emt 0:01:04]} 9. O-O {[%emt 0:03:16] The position is equal.} O-O {[%emt 0:01:19]} 10. a4 {[%emt 0:02:48]} c6 {[%emt 0:01:04]} 11. b3 {[%emt 0:01:24]} cxb3 {[%emt 0:04:43]} 12. Nxb3 {[%emt 0:00:16]} Ba6 {[%emt 0:05:03]} 13. Nc5 {[%emt 0:08:12]} Nd5 {[%emt 0:19:35]} 14. Ne5 {[%emt 0:03:01] [#]} bxa4 $146 {[%emt 0:09:29]} (14... b4 $11) ({Predecessor:} 14... b4 15. Rfe1 Qe7 16. e3 Rc8 17. h4 f6 18. Ned3 Bxd3 19. Qxd3 Nd7 20. Rec1 Ra7 {1-0 (77) Michalik,P (2566)-Zwardon,V (2470) Legnica 2021}) 15. Be4 {[%emt 0:05:01]} ({Of course not} 15. Rxa4 Bb5 $11) (15. Nxa6 $14 {should be considered.} Rxa6 16. Rfc1) 15... h6 $11 {[%emt 0:17:04]} 16. Nxe6 $2 {[%emt 0:03:50]} fxe6 $19 {[%emt 0:01:10]} 17. Bh7+ {[%emt 0:00:07]} Kh8 {[%emt 0:00:03]} 18. Ng6+ {[%emt 0:00:13]} Kxh7 {[%emt 0:00:07]} 19. Nxf8+ {[%emt 0:00:18]} Kg8 {[%emt 0:00:06]} 20. Nxe6 {[%emt 0:00:42]} Qf6 {[%emt 0:04:35]} 21. Nc5 {[%emt 0:04:11]} Bb5 {[%emt 0:04:32]} (21... Qxd4 22. Nxa6 (22. Rxa4 Nb4 $11) 22... Nxa6 23. Qxc6 $11) 22. Rfd1 {[%emt 0:23:41]} (22. Nxa4 $142 Na6 23. Qd2) 22... Na6 {[%emt 0:01:03]} 23. Nxa4 {[%emt 0:01:03]} (23. Nxa6 {keeps fighting.} Rxa6 24. e4) 23... Nab4 {[%emt 0:03:02]} 24. Qd2 {[%emt 0:02:18]} Re8 {[%emt 0:01:48]} ({Don't go for} 24... Rf8 $2 25. Rf1 $19) 25. Re1 {[%emt 0:02:06]} Qf5 {[%emt 0:02:20] ...Nc2 is the strong threat.} ({And not} 25... Rf8 26. e4 Nc7 27. Nc5 $15) 26. e4 {[%emt 0:12:09]} Rxe4 {[%emt 0:00:30]} 27. Nc5 {[%emt 0:00:15]} Rxe1+ {[%emt 0:01:45]} 28. Qxe1 {[%emt 0:00:38]} Kh7 $2 {[%emt 0:04:52]} (28... Nc2 $19 {has better winning chances.} 29. Qe8+ Kh7) 29. Qe8 {[%emt 0:02:52][%mdl 8192]} (29. Rxa5 $17 {nothing else works.} Nc2 30. Qe4 Nxd4 31. Qxf5+ Nxf5 32. f4) 29... Nc7 $2 {[%emt 0:10:16]} (29... Nc2 30. Rd1 Nxd4 $1 {[%mdl 512]}) 30. Qd8 $2 {[%emt 0:03:40]} (30. Qe5 Qf7 31. Qe4+ Qg6 32. Qxg6+ Kxg6 33. Rxa5) 30... Ne6 {[%emt 0:01:26]} 31. Nxe6 {[%emt 0:04:00]} Qxe6 {[%emt 0:00:05]} 32. Qxa5 {[%emt 0:00:16]} Nc2 {[%emt 0:01:41][%csl LRa1,LRd4]} 33. Rd1 {[%emt 0:00:37]} Qe4 {[%emt 0:02:17][%cal Oc2e3] ( -> ...Ne3!)} 34. Qc3 {[%emt 0:01:27] Against Ne3} Be2 {[%emt 0:00:30] Prevents f3.} 35. f3 {[%emt 0:01:47]} Bxf3 {[%emt 0:00:42]} 36. Qd3 {[%emt 0:00:05]} Kg6 {[%emt 0:00:53]} 37. Kf2 {[%emt 0:01:05]} Qxd3 {[%emt 0:00:15]} 38. Rxd3 {[%emt 0:00:01]} Be4 {[%emt 0:00:13]} 39. Rd1 {[%emt 0:00:09]} Kf5 {[%emt 0:00:22]} 40. h3 {[%emt 0:00:04]} Ke6 {[%emt 0:00:40]} 41. Rb1 {[%emt 0:31:36]} Nxd4 {[%emt 0:03:29]} 42. Rb7 {[%emt 0:00:00]} Nf5 {[%emt 0:00:16]} 43. g4 {[%emt 0:00:00] [#]} Ne7 {[%emt 0:00:06]} 44. Ke3 {[%emt 0:00:00]} Bg2 {[%emt 0:01:12]} 45. h4 {[%emt 0:00:00]} c5 {[%emt 0:03:13][%cal Bc6c5,Bc5c4][%mdl 32]} 46. Ra7 {[%emt 0:00:00]} c4 {[%emt 0:02:50] White must now prevent ...c3.} 47. Ra2 {[%emt 0:00:00]} Bf1 {[%emt 0:01:44]} 48. Kd4 {[%emt 0:00:00]} (48. Ra1 Bd3 49. Ra7) 48... Nc6+ {[%emt 0:01:33] Black is clearly winning.} 49. Kc5 {[%emt 0:00:00]} Ne5 {[%emt 0:01:34]} 50. Ra6+ {[%emt 0:00:00]} Kf7 {[%emt 0:01:35]} 51. Ra7+ {[%emt 0:00:00]} Kg6 {[%emt 0:01:26]} 52. Ra6+ {[%emt 0:00:00] [#]} Kh7 $1 {[%emt 0:00:46] And now ...c3 would win.} 53. Ra1 {[%emt 0:00:00]} Be2 {[%emt 0:01:10]} 54. g5 {[%emt 0:00:00]} h5 {[%emt 0:00:45]} 55. Kd4 {[%emt 0:00:00]} Ng6 {[%emt 0:00:10]} 56. Rh1 {[%emt 0:00:00]} Bd3 {[%emt 0:00:48] Weighted Error Value: White=0.68/Black=0.39} 0-1

[Event "Krakow Championship-A 2022"]
[Site "Krakow"]
[Date "2022.06.29"]
[Round "6.10"]
[White "Skytte, Rasmus"]
[Black "Szustakowski, Antoni"]
[Result "1-0"]
[ECO "C11"]
[WhiteElo "2357"]
[BlackElo "2265"]
[Annotator "TA"]
[PlyCount "67"]
[EventDate "2022.06.25"]
[EventType "swiss"]
[EventCountry "POL"]
[SourceTitle "playchess.com"]
[Source "ChessBase"]
[SourceQuality "1"]
[TimeControl "40/5400+30:1800+30"]

{[%evp 14,67,17,8,27,22,35,27,16,27,100,98,110,102,102,102,120,59,156,163,138,72,72,60,195,210,214,197,197,201,196,205,345,206,366,357,393,350,342,338,304,272,300,294,395,395,497,345,460,435,514,440,663,647,1089,1064]} 1. e4 {[%emt 0:02:13]} e6 {[%emt 0:00:11]} 2. d4 {[%emt 0:00:52]} d5 {[%emt 0:00:11]} 3. Nc3 {[%emt 0:01:08]} Nf6 {[%emt 0:02:26]} 4. e5 {[%emt 0:03:34]} Nfd7 {[%emt 0:00:09]} 5. f4 {[%emt 0:00:56]} c5 {[%emt 0:00:15]} 6. Nf3 {[%emt 0:00:17]} Nc6 {[%emt 0:00:10]} 7. Be3 {[%emt 0:01:12]} a6 {[%emt 0:00:18]} 8. a3 {[%emt 0:05:35]} b5 {[%emt 0:07:58] C11: French: Classical System: 4 e5 and 4 Bg5 dxe4.} 9. Bd3 {[%emt 0:04:29]} Qb6 {[%emt 0:09:19][%cal Rc6d4]} 10. O-O {[%emt 0:04:06]} cxd4 {[%emt 0:21:25] White has an edge.} 11. Bf2 {[%emt 0:01:42]} b4 {[%emt 0:00:03]} (11... Bc5 $11 {keeps the balance.} 12. Na2 Qa7) 12. Na4 $16 {[%emt 0:02:32] [#]} Qc7 $146 {[%emt 0:03:02]} ({Predecessor:} 12... Qa5 13. axb4 Qxb4 14. Nxd4 Nxd4 15. c3 Qb3 16. cxd4 Qxd1 17. Rfxd1 Bb4 18. f5 O-O 19. Rdc1 a5 20. Rc7 Re8 21. Bb5 {1-0 (21) Curdo,J (2252)-Goldberg,B (2019) Lowell 2003}) 13. axb4 {[%emt 0:03:11]} (13. Nxd4 $6 bxa3 14. bxa3 Nxd4 15. Bxd4 Nc5 16. Nxc5 Bxc5 $11) 13... Bxb4 {[%emt 0:00:10]} 14. Nxd4 {[%emt 0:01:43]} O-O {[%emt 0:01:17]} 15. Kh1 {[%emt 0:05:00]} (15. Qh5 g6 16. Qh6 Nxd4 17. Bxd4 Re8 $14) (15. c3 $16 Be7 16. g3 (16. Qh5 g6 $14)) 15... a5 {[%emt 0:10:35]} (15... Nxd4 $14 16. Bxd4 g6) 16. c3 {[%emt 0:13:39]} ({Don't do} 16. Qh5 $6 g6 17. Qh6 Ba6 $14) 16... Be7 {[%emt 0:00:20] [#]} 17. Qe2 {[%emt 0:03:02] 0x0.0017646f4e0ddp-1022s more active pieces. The black rooks are badly placed.} (17. Qh5 $142 $1 {[%csl Gd3][%cal Rh5h7]} g6 18. Qe2) 17... Nxd4 {[%emt 0:07:44]} 18. Bxd4 $40 {[%emt 0:10:29][%mdl 128] White attacks.} f6 {[%emt 0:00:07] A mistake that costs the game.} (18... Nc5 $14) 19. exf6 $18 {[%emt 0:02:30]} Nxf6 {[%emt 0:00:10]} 20. Nb6 {[%emt 0:01:00]} Rb8 {[%emt 0:00:20]} 21. Nxc8 {[%emt 0:00:35]} Qxc8 {[%emt 0:00:35]} 22. Rxa5 {[%emt 0:01:08]} Bd6 {[%emt 0:01:14]} (22... Bd8 {was necessary.}) 23. Ra6 {[%emt 0:01:29]} (23. b4 $142) 23... Qd7 $2 {[%emt 0:00:33]} (23... Bc5 24. Bxc5 (24. Rxe6 Bxd4 25. cxd4 Rxb2 $14) 24... Qxc5 25. Rxe6 (25. Qxe6+ Kh8 $18) 25... Qc7) 24. Ra7 {[%emt 0:01:00]} Qe8 {[%emt 0:01:31]} 25. b4 {[%emt 0:02:10][%cal Bb2b4,Bb4b5][%mdl 32]} Rf7 {[%emt 0:00:19]} 26. Ra6 {[%emt 0:01:55]} Rd8 {[%emt 0:03:13]} 27. g3 {[%emt 0:01:57]} Re7 {[%emt 0:01:42]} 28. Re1 {[%emt 0:01:34]} Qf7 {[%emt 0:01:04]} 29. b5 {[%emt 0:04:22]} e5 {[%emt 0:01:21]} 30. Bxe5 {[%emt 0:06:57]} Bxe5 {[%emt 0:04:24]} 31. fxe5 {[%emt 0:00:07] White is clearly winning.} Nd7 {[%emt 0:00:11]} 32. Rd6 {[%emt 0:03:44]} Qe8 {[%emt 0:02:32]} (32... Qf8 $142 33. Rxd5 Rxe5) 33. Rxd5 {[%emt 0:01:38]} Nb6 {[%emt 0:00:03] [#]} 34. Bxh7+ $1 {[%emt 0:01:46] Weighted Error Value: White=0.23 (precise) /Black=0.61} 1-0

[Event "Krakow Championship-A 2022"]
[Site "Krakow"]
[Date "2022.06.29"]
[Round "6.11"]
[White "Jacobsen, Mikkel Manosri"]
[Black "Lye, Lik Zang"]
[Result "1-0"]
[ECO "A00"]
[WhiteElo "2251"]
[BlackElo "2358"]
[Annotator "TA"]
[PlyCount "72"]
[EventDate "2022.06.25"]
[EventType "swiss"]
[EventCountry "POL"]
[SourceTitle "playchess.com"]
[Source "ChessBase"]
[SourceQuality "1"]
[TimeControl "40/5400+30:1800+30"]

{[%evp 9,72,15,10,6,7,0,10,12,10,-5,11,8,28,20,37,53,95,81,95,91,127,121,128,125,132,119,141,123,156,151,149,147,186,172,186,126,299,262,337,315,453,211,210,196,217,221,202,154,156,136,358,345,385,396,384,387,380,372,931,919,29983,29984,29984,29985,29990]} 1. e3 {[%emt 0:00:05]} d5 {[%emt 0:00:28]} 2. Nf3 {[%emt 0:00:22]} Nf6 {[%emt 0:00:20]} 3. c4 {[%emt 0:00:37]} c6 {[%emt 0:00:24]} 4. Nc3 {[%emt 0:00:31]} a6 {[%emt 0:00:45]} 5. b3 {[%emt 0:00:39]} Bf5 {[%emt 0:01:49]} 6. Bb2 {[%emt 0:02:56] A11: English Opening: 1...c6.} e6 {[%emt 0:01:03]} 7. Be2 {[%emt 0:01:36]} h6 {[%emt 0:01:49]} 8. O-O {[%emt 0:01:04] The position is equal.} Nbd7 {[%emt 0:01:23]} 9. d3 {[%emt 0:01:26][%cal Bd2d3,Bd3d4][%mdl 32]} Be7 {[%emt 0:06:31]} 10. cxd5 {[%emt 0:10:52]} cxd5 {[%emt 0:04:52]} 11. e4 {[%emt 0:00:10] [#]} Bh7 $146 {[%emt 0:16:57][%cal Rd5e4]} ({Predecessor:} 11... dxe4 12. dxe4 Bh7 13. e5 Ne4 14. Nxe4 Bxe4 15. Qd4 Bd5 16. Rfd1 O-O 17. Qg4 Rc8 {½-½ (42) Miroshnichenko,E (2619)-Drozdovskij,Y (2509) Cappelle la Grande 2006}) 12. e5 {[%emt 0:03:22]} Ng4 {[%emt 0:01:28]} 13. d4 {[%emt 0:09:03] Threatens to win with h3.} h5 {[%emt 0:03:39]} 14. Ne1 {[%emt 0:00:37]} Bf5 {[%emt 0:12:00]} 15. h3 {[%emt 0:03:34]} Nh6 {[%emt 0:05:36]} 16. Bxh5 {[%emt 0:00:46]} Bb4 {[%emt 0:02:32]} 17. Bf3 {[%emt 0:04:38]} Qg5 {[%emt 0:05:00]} 18. Ne2 {[%emt 0:12:01]} Qh4 {[%emt 0:13:48]} 19. Nd3 {[%emt 0:05:50]} Bxd3 {[%emt 0:07:36]} 20. Qxd3 {[%emt 0:00:02]} g5 {[%emt 0:00:51]} 21. Rfc1 {[%emt 0:01:44]} Ba5 {[%emt 0:02:31]} 22. Ba3 {[%emt 0:01:19]} (22. Rc2 $1 $18) 22... Bb6 $2 {[%emt 0:03:16] [#]} (22... Rg8 $16 23. Rc2 (23. Qh7 Nf8 $14) 23... g4) 23. Qd2 $1 $18 {[%emt 0:11:03]} a5 {[%emt 0:05:33]} 24. Rc2 {[%emt 0:10:02]} ({Not} 24. g3 Qxh3 25. Qxg5 (25. Bg2 Qg4 $14) 25... Nf5 $16) 24... g4 {[%emt 0:01:30]} (24... Rd8 {keeps fighting.} 25. Rd1 (25. g3 Qxh3 26. Qxg5 Nf5 $16) 25... g4) 25. Qf4 {[%emt 0:00:35]} (25. g3 $142 Qh5 {[#]} 26. Rac1 $1) 25... Rg8 {[%emt 0:00:38]} 26. Nc3 {[%emt 0:06:52]} Qg5 {[%emt 0:00:36]} 27. Qxg5 {[%emt 0:10:31]} Rxg5 {[%emt 0:00:05]} 28. Bxg4 {[%emt 0:00:02] Strongly threatening Nb5.} Bxd4 {[%emt 0:00:39]} 29. Rac1 $40 {[%emt 0:00:01][%mdl 128] White wants a kill.} Bxc3 {[%emt 0:00:43] This move loses the game for Black.} (29... Nxg4 $2 30. Nxd5 Bxf2+ 31. Kf1) (29... Kd8 $16 {was worth a try.}) 30. Rxc3 {[%emt 0:00:01][%cal Bc2c3,Bc3c7,Bc7b7][%mdl 32] Intending Rc8+ and mate.} Nxe5 {[%emt 0:00:28]} 31. f4 {[%emt 0:00:31][%csl LRe5,LRg5]} Rxg4 {[%emt 0:00:35]} 32. hxg4 {[%emt 0:01:55]} Nexg4 {[%emt 0:00:08]} 33. Rc7 {[%emt 0:00:45]} Nf5 $2 {[%emt 0:00:23]} (33... d4 34. Rxb7 Ne3) 34. Rxb7 {[%emt 0:00:02] White wants to mate with Rcc7.} d4 {[%emt 0:00:57]} 35. Rcc7 {[%emt 0:00:07]} Ngh6 {[%emt 0:00:35]} 36. g4 {[%emt 0:00:01]} Ne3 {[%emt 0:00:00] Weighted Error Value: White=0.14 (very precise) /Black=0.57} 1-0

[Event "Krakow Championship-A 2022"]
[Site "Krakow"]
[Date "2022.06.29"]
[Round "6.12"]
[White "Piekielny, Pawel"]
[Black "Turcan, Richard"]
[Result "1-0"]
[ECO "B82"]
[WhiteElo "2230"]
[BlackElo "2278"]
[Annotator "NA RC"]
[PlyCount "49"]
[EventDate "2022.06.25"]
[EventType "swiss"]
[EventCountry "POL"]
[SourceTitle "playchess.com"]
[Source "ChessBase"]
[SourceQuality "1"]
[TimeControl "40/5400+30:1800+30"]

1. e4 {[%emt 0:00:01]} c5 {[%emt 0:07:11]} 2. Nf3 {[%emt 0:00:11]} e6 {[%emt 0:00:41]} 3. d4 {[%emt 0:00:05]} cxd4 {[%emt 0:00:05]} 4. Nxd4 {[%emt 0:00:02]} Nf6 {[%emt 0:00:20]} 5. Nc3 {[%emt 0:00:06]} d6 {[%emt 0:00:10]} 6. f4 {[%emt 0:00:05]} Nc6 {[%emt 0:02:19]} 7. Nb3 {[%emt 0:07:13]} Be7 {[%emt 0:04:19]} 8. Qf3 {[%emt 0:01:00]} O-O {[%emt 0:04:41]} 9. Be3 {[%emt 0:01:50]} Qc7 {[%emt 0:03:39]} 10. g4 {[%emt 0:02:41]} a6 {[%emt 0:12:06]} 11. g5 {[%emt 0:09:29]} Nd7 {[%emt 0:00:11]} 12. O-O-O {[%emt 0:03:20]} b5 {[%emt 0:03:04]} 13. Rg1 {[%emt 0:06:33]} Bb7 {[%emt 0:17:36]} 14. Qf2 {[%emt 0:11:58]} Na5 {[%emt 0:05:56]} 15. Bd3 {[%emt 0:09:12]} Nxb3+ {[%emt 0:12:06]} 16. axb3 {[%emt 0:00:21]} Nc5 {[%emt 0:00:23]} 17. b4 {[%emt 0:12:39]} Nxd3+ {[%emt 0:00:24]} 18. Rxd3 {[%emt 0:00:31]} d5 {[%emt 0:04:22]} 19. Bd4 {[%emt 0:08:37]} dxe4 {[%emt 0:06:46]} 20. Rh3 {[%emt 0:00:26]} e5 {[%emt 0:01:31]} 21. Qh4 {[%emt 0:01:52]} h6 {[%emt 0:00:13]} 22. Bxe5 {[%emt 0:03:10]} Qb6 {[%emt 0:00:20]} 23. Rgg3 {[%emt 0:07:09]} Qg6 {[%emt 0:08:56]} 24. Bf6 {[%emt 0:02:12]} h5 {[%emt 0:04:13]} 25. f5 {[%emt 0:02:19]} 1-0